bitfinex-derivatives/quotes_SOLF0:USTF0_20250106
["timestamp","ask_amount","ask_price","bid_price","bid_amount"]
[1736201025226,9.22902789,218.08,217.92,2.6]
[1736201025422,17.97787243,218.08,217.92,2.6]
[1736201025824,2.2923,218.04,217.92,2.6]
[1736201026125,7.1116,218.03,217.92,2.6]
[1736201027027,2.2932,217.95,217.92,2.6]
[1736201027326,2.2933,217.93,217.92,2.6]
[1736201027726,15.86044454,218.03,217.86,1.90707813]
[1736201027920,2.2938,217.89,217.87,2.6]
[1736201029526,2.6,217.98,217.86,4.20107813]
[1736201029527,2.6,217.98,217.86,1.90707813]
[1736201030523,2.6,217.98,217.86,4.20117813]
[1736201030828,2.6,217.98,217.86,1.90707813]
[1736201031029,2.294,217.88,217.86,1.90707813]
[1736201031825,2.6,217.98,217.86,1.90707813]
[1736201032024,2.2939,217.89,217.86,1.90707813]
[1736201032734,2.6,217.98,217.86,1.90707813]
[1736201033425,2.2937,217.91,217.88,2.2939]
[1736201033624,16.1519105,218.02,217.86,1.90707813]
[1736201033928,2.6,218.01,217.91,2.2936]
[1736201034930,2.2933,217.94,217.9,2.2937]
[1736201035729,2.2935,217.93,217.89,4.8938]
[1736201035924,2.2935,217.93,217.89,2.6]
[1736201037027,2.2933,217.94,217.9,2.2937]
[1736201038032,2.6,218.01,217.89,4.8938]
[1736201038528,11.34884454,218.01,217.89,4.8938]
[1736201038727,2.6,218.01,217.89,4.8938]
[1736201038924,2.2934,217.93,217.89,2.6]
[1736201039120,2.2934,217.93,217.9,2.2937]
[1736201042129,2.2934,217.94,217.9,2.2937]
[1736201044035,11.5670105,218.02,217.89,2.6]
[1736201044530,2.293,217.97,217.94,2.2933]
[1736201045036,2.81816596,218.02,217.94,2.2933]
[1736201045234,2.2932,217.96,217.94,2.2933]
[1736201047642,2.2932,217.96,217.94,4.8933]
[1736201048735,2.2927,218.0,217.94,4.8933]
[1736201049033,2.81816596,218.02,217.94,4.8933]
[1736201049738,2.2931,217.97,217.94,4.8933]
[1736201059640,2.2931,217.97,217.95,2.2932]
[1736201060545,2.2931,217.97,217.94,4.8933]
[1736201060741,2.81816596,218.02,217.87,1.5009]
[1736201060943,2.6,218.01,217.87,2.6]
[1736201061250,2.6,218.01,217.86,6.80117813]
[1736201061441,9.22380895,218.01,217.86,6.80117813]
[1736201061744,17.97265349,218.01,217.86,6.80117813]
[1736201062546,31.74265349,218.01,217.86,1.90707813]
[1736201062752,6.62380895,218.0,217.86,1.90707813]
[1736201063042,15.37265349,218.0,217.86,1.90707813]
[1736201063246,29.14265349,218.0,217.84,4.8943]
[1736201063444,2.2932,217.96,217.84,4.8943]
[1736201063647,5.5494,217.95,217.84,4.8943]
[1736201063947,1.4068,217.94,217.84,2.2943]
[1736201064450,2.294,217.88,217.84,2.2943]
[1736201066348,2.294,217.88,217.83,2.6]
[1736201066650,2.294,217.88,217.85,2.2942]
[1736201066952,2.2937,217.9,217.83,2.6]
[1736201067147,1.4068,217.94,217.83,2.6]
[1736201067850,2.2934,217.93,217.9,2.2936]
[1736201069153,2.6,217.99,217.9,2.2936]
[1736201069346,2.6,217.99,217.91,2.2935]
[1736201069860,2.2932,217.95,217.91,2.2935]
[1736201071153,2.2932,217.95,217.88,2.6]
[1736201071154,2.2932,217.95,217.92,2.2935]
[1736201071547,2.2931,217.97,217.94,2.2933]
[1736201072145,1.5226,218.0,217.94,2.2933]
[1736201072347,1.5226,218.0,217.93,2.6]
[1736201073555,2.2929,217.99,217.95,2.2932]
[1736201074251,1.5226,218.0,217.95,2.2932]
[1736201074459,2.293,217.98,217.95,2.2932]
[1736201076261,2.6,217.98,217.81,2.6]
[1736201076459,2.6,217.98,217.83,2.9638]
[1736201078561,2.2937,217.92,217.83,2.9638]
[1736201079161,2.6,217.98,217.83,2.9638]
[1736201079364,2.6,217.98,217.84,2.6]
[1736201080058,2.2934,217.94,217.84,4.8943]
[1736201080260,2.6,217.98,217.84,4.8943]
[1736201081363,2.294,217.89,217.84,4.8943]
[1736201082263,2.294,217.89,217.85,2.2943]
[1736201083358,1.4097,217.97,217.65,19.14144183]
[1736201083564,2.2942,217.86,217.82,2.2945]
[1736201083756,2.2942,217.86,217.83,2.6]
[1736201083962,1.4097,217.97,217.83,2.6]
[1736201084270,13.77,217.95,217.74,2.8683]
[1736201084462,13.77,217.95,217.76,2.6]
[1736201084663,2.2939,217.9,217.76,2.6]
[1736201084865,7.0795,217.89,217.77,2.2951]
[1736201085672,2.2947,217.82,217.78,2.295]
[1736201085871,7.0795,217.89,217.76,2.6]
[1736201086274,2.2943,217.86,217.82,2.2946]
[1736201091576,2.2943,217.85,217.81,4.8947]
[1736201092981,2.2944,217.85,217.81,2.6]
[1736201093577,2.2946,217.82,217.81,2.6]
[1736201095080,2.2947,217.81,217.78,2.6]
[1736201097579,2.2947,217.81,217.78,4.895]
[1736201101988,2.2946,217.82,217.79,2.2949]
[1736201102874,7.0795,217.89,217.78,2.6]
[1736201103584,4.4795,217.89,217.78,2.6]
[1736201104287,4.4795,217.89,217.81,2.2946]
[1736201105082,2.2945,217.83,217.81,2.2946]
[1736201105585,2.2945,217.83,217.8,2.2948]
[1736201106083,2.2947,217.82,217.78,2.6]
[1736201106685,2.2947,217.82,217.79,2.2949]
[1736201107185,4.4795,217.89,217.78,2.6]
[1736201107489,2.2947,217.81,217.78,4.895]
[1736201107687,2.2947,217.81,217.78,2.6]
[1736201107884,4.4795,217.89,217.78,2.6]
[1736201108191,2.2947,217.82,217.79,2.2949]
[1736201108681,2.2947,217.81,217.79,2.2949]
[1736201111285,2.2947,217.81,217.78,4.895]
[1736201112489,4.4795,217.89,217.77,2.2951]
[1736201112679,4.4795,217.89,217.75,2.6]
[1736201113083,4.5882,217.88,217.75,4.8953]
[1736201113280,2.6,217.87,217.75,2.2953]
[1736201116579,2.295,217.79,217.75,2.2953]
[1736201116786,2.6,217.87,217.75,2.2953]
[1736201117189,2.6,217.87,217.73,2.2955]
[1736201117387,4.5885,217.86,217.72,2.6]
[1736201117592,4.5885,217.86,217.71,2.6]
[1736201117787,4.5885,217.86,217.7,4.8958]
[1736201117986,4.5888,217.85,217.7,2.6]
[1736201118388,13.33764454,217.85,217.7,2.6]
[1736201118585,2.2949,217.8,217.64,1.4379]
[1736201118790,2.6,217.8,217.68,2.6]
[1736201119093,2.6,217.8,217.69,2.6]
[1736201119494,2.2955,217.74,217.7,2.2958]
[1736201120397,2.2955,217.74,217.69,2.6]
[1736201120597,2.2955,217.74,217.71,2.2958]
[1736201120792,2.6,217.8,217.69,2.6]
[1736201120996,2.6,217.8,217.75,2.2953]
[1736201121194,2.6,217.84,217.75,2.2953]
[1736201121391,2.295,217.79,217.75,2.2953]
[1736201122100,2.2951,217.78,217.75,2.2953]
[1736201122299,2.6,217.86,217.74,2.6]
[1736201122600,2.6,217.86,217.75,2.6]
[1736201122898,2.2947,217.81,217.75,2.6]
[1736201123095,2.6,217.86,217.75,2.6]
[1736201123590,4.4795,217.89,217.8,2.2947]
[1736201123908,4.4795,217.89,217.81,2.6]
[1736201124397,4.4795,217.89,217.81,4.8947]
[1736201124900,4.4795,217.89,217.81,2.6]
[1736201125100,2.2945,217.84,217.81,2.6]
[1736201127304,2.2943,217.86,217.81,2.6]
[1736201127897,2.2943,217.86,217.83,2.2945]
[1736201128803,2.2943,217.86,217.82,2.2946]
[1736201130602,2.2943,217.86,217.81,2.6]
[1736201130803,2.2943,217.86,217.83,2.2945]
[1736201131508,1.5337,217.94,217.81,2.6]
[1736201131800,2.2944,217.85,217.81,2.6]
[1736201132409,2.2944,217.85,217.82,2.2946]
[1736201133804,1.5337,217.94,217.81,2.6]
[1736201134400,2.2941,217.87,217.84,2.2944]
[1736201134809,2.2941,217.87,217.85,2.6]
[1736201142111,2.2941,217.87,217.85,4.8943]
[1736201142707,2.2939,217.9,217.85,2.6]
[1736201143103,2.2937,217.92,217.85,2.6]
[1736201143311,4.5859,217.98,217.88,2.2939]
[1736201144512,2.2938,217.91,217.88,2.2939]
[1736201155523,1.4779,217.99,217.75,4.5906]
[1736201155725,1.4779,217.99,217.76,2.6]
[1736201155726,2.294,217.88,217.76,2.6]
[1736201155926,2.294,217.88,217.77,1.4432]
[1736201156424,2.294,217.88,217.85,2.2943]
[1736201156625,2.294,217.88,217.86,2.6]
[1736201158026,2.294,217.88,217.86,4.8942]
[1736201158928,2.2941,217.87,217.84,2.2944]
[1736201159129,2.2941,217.87,217.85,2.6]
[1736201159330,30.61047621,217.99,217.84,2.2944]
[1736201159530,2.2942,217.86,217.85,2.6]
[1736201161230,2.2941,217.87,217.85,2.6]
[1736201162832,2.2942,217.86,217.85,2.6]
[1736201163435,2.2942,217.86,217.84,2.6]
[1736201163630,2.2943,217.85,217.84,2.6]
[1736201166032,17.96750469,217.97,217.84,2.6]
[1736201166330,9.21866015,217.97,217.84,2.6]
[1736201166535,9.21866015,217.97,217.84,4.8944]
[1736201167531,2.2942,217.87,217.84,4.8944]
[1736201172345,17.96750469,217.97,217.84,4.8944]
[1736201172544,2.2942,217.86,217.84,4.8944]
[1736201172846,2.2942,217.86,217.84,2.6]
[1736201174743,2.2943,217.85,217.84,2.6]
[1736201177750,2.2942,217.86,217.84,2.6]
[1736201178850,3.0478,217.94,217.79,1.5143]
[1736201179051,16.8178,217.94,217.77,1.4432]
[1736201179254,13.77,217.92,217.78,2.6]
[1736201179448,2.295,217.79,217.78,2.6]
[1736201179654,4.5876,217.9,217.77,2.6]
[1736201180149,33.72510469,217.9,217.74,2.2954]
[1736201180352,6.61866015,217.89,217.75,2.6]
[1736201180553,15.36750469,217.89,217.75,2.6]
[1736201181144,15.36750469,217.89,217.76,2.6]
[1736201181347,8.74884454,217.89,217.88,2.294]
[1736201181551,8.74884454,217.89,217.88,4.894]
[1736201181850,125.32344667,217.93,217.91,2.2936]
[1736201182053,2.2931,217.97,217.91,2.2936]
[1736201182249,8.2791251,218.02,217.91,2.2936]
[1736201182453,2.2932,217.96,217.9,2.2938]
[1736201183155,2.2933,217.95,217.91,2.6]
[1736201185859,2.2934,217.94,217.91,2.6]
[1736201186557,8.2791251,218.02,217.91,2.6]
[1736201186755,2.2927,218.01,217.91,2.6]
[1736201186963,8.78045383,218.05,217.91,2.6]
[1736201187257,8.78045383,218.06,217.91,2.6]
[1736201187756,7.0294,218.08,217.91,2.6]
[1736201188153,2.2928,218.0,217.95,2.2932]
[1736201188356,2.2928,218.0,217.83,1.5215]
[1736201188357,2.2928,218.0,217.96,2.6]
[1736201189355,2.2928,217.99,217.96,2.6]
[1736201192762,2.2925,218.03,217.99,2.2928]
[1736201193068,4.4294,218.08,217.96,2.6]
[1736201193766,2.2923,218.05,218.01,2.2926]
[1736201193966,2.2923,218.05,218.02,2.6]
[1736201194963,2.2923,218.04,218.02,2.6]
[1736201200168,4.4294,218.08,218.02,2.6]
[1736201200367,4.4294,218.08,217.86,4.5883]
[1736201200566,18.1994,218.08,217.83,1.5215]
[1736201200969,13.77,218.06,217.84,2.6]
[1736201201471,2.2934,217.94,217.9,2.2937]
[1736201201670,2.6,218.02,217.89,2.6]
[1736201201862,16.37,218.02,217.89,2.6]
[1736201202066,2.6,218.02,217.89,2.6]
[1736201202573,2.2931,217.97,217.92,2.2936]
[1736201203268,2.2932,217.96,217.92,2.2936]
[1736201203571,2.6,218.02,217.89,4.8938]
[1736201203768,2.6,218.02,217.9,2.6]
[1736201204068,2.2937,217.92,217.89,2.6]
[1736201204267,2.2937,217.92,217.88,2.6]
[1736201204773,2.2934,217.94,217.89,2.2939]
[1736201205165,2.6,218.02,217.89,2.2939]
[1736201206576,2.2935,217.93,217.89,2.2939]
[1736201207974,2.2935,217.93,217.83,1.5215]
[1736201208172,2.6,218.02,217.9,2.2937]
[1736201208173,2.2934,217.94,217.9,2.2937]
[1736201208580,2.6,218.02,217.92,2.2935]
[1736201208769,2.2932,217.96,217.92,2.2935]
[1736201209766,2.2932,217.96,217.91,2.6]
[1736201209972,2.2931,217.97,217.93,2.2934]
[1736201210670,2.293,217.98,217.94,2.2933]
[1736201211570,2.2928,218.0,217.91,2.6]
[1736201211769,2.2928,218.0,217.92,2.9558]
[1736201212675,4.4294,218.08,217.92,2.9558]
[1736201212876,4.4294,218.08,217.93,1.453]
[1736201213075,2.2923,218.04,218.0,2.2926]
[1736201213273,2.2923,218.04,217.93,1.453]
[1736201213274,4.4294,218.08,218.01,2.6]
[1736201213879,2.2923,218.05,218.01,4.8925]
[1736201215679,2.2923,218.04,218.01,4.8925]
[1736201217178,2.2925,218.03,218.01,2.6]
[1736201219776,4.4294,218.08,217.93,1.453]
[1736201219975,4.4294,218.08,217.94,2.6]
[1736201219976,2.2927,218.01,217.94,2.6]
[1736201220676,4.4294,218.08,217.94,2.6]
[1736201220877,4.4294,218.08,217.97,2.293]
[1736201221080,2.6,218.13,217.98,2.6]
[1736201221380,2.2925,218.03,217.99,4.8927]
[1736201221580,2.2925,218.03,218.0,2.6]
[1736201222776,2.2925,218.03,217.99,2.2927]
[1736201222971,16.37,218.13,217.97,2.2929]
[1736201223177,4.583,218.12,217.98,2.6]
[1736201223372,4.583,218.12,217.99,2.6]
[1736201223581,2.2928,218.0,217.99,2.6]
[1736201224881,13.77,218.11,217.93,1.453]
[1736201225083,2.2929,217.99,217.95,2.2932]
[1736201226277,2.2929,217.99,217.94,2.6]
[1736201226485,2.2929,217.99,217.96,2.2931]
[1736201226880,2.2922,218.06,217.97,2.293]
[1736201227079,8.75170994,218.1,217.94,2.6]
[1736201227275,13.33470994,218.12,217.94,2.6]
[1736201227882,13.33470994,218.12,217.99,2.2928]
[1736201228086,13.33470994,218.12,218.0,2.6]
[1736201228886,2.2925,218.03,218.0,2.6]
[1736201229185,13.33470994,218.12,218.0,2.6]
[1736201229882,2.2921,218.07,218.03,2.2923]
[1736201232990,2.2921,218.06,218.03,2.2923]
[1736201234585,4.3406,218.14,218.0,2.6]
[1736201234785,2.2922,218.05,218.02,2.2925]
[1736201243497,2.2922,218.05,218.03,2.62]
[1736201243692,26.86230994,218.14,217.93,1.453]
[1736201243893,2.2928,218.0,217.97,2.293]
[1736201244302,22.52170994,218.09,217.96,2.62]
[1736201244502,2.293,217.97,217.95,2.62]
[1736201246507,2.293,217.98,217.95,2.62]
[1736201247904,2.293,217.98,217.9,2.52913156]
[1736201248208,2.293,217.98,217.91,2.62]
[1736201248506,22.17163684,218.05,217.88,2.62]
[1736201248807,22.17163684,218.05,217.89,2.2939]
[1736201248808,13.77,218.03,217.89,2.2939]
[1736201249003,2.2935,217.94,217.89,2.2939]
[1736201250001,2.2935,217.94,217.88,2.62]
[1736201250204,2.2935,217.94,217.9,2.2937]
[1736201252207,2.62,218.0,217.88,2.62]
[1736201252208,8.75170994,218.02,217.88,2.62]
[1736201252497,8.75170994,218.03,217.88,2.62]
[1736201252699,125.32344667,218.04,217.88,2.62]
[1736201252899,2.2925,218.02,217.98,2.2929]
[1736201254508,2.2925,218.02,217.94,2.62]
[1736201254509,2.2925,218.02,217.99,2.2928]
[1736201254713,2.2925,218.02,217.94,2.62]
[1736201254907,2.2926,218.01,217.94,2.62]
[1736201255410,2.2926,218.01,217.96,2.2931]
[1736201256211,2.2926,218.01,217.97,2.293]
[1736201257815,6.9278,218.06,217.97,2.293]
[1736201258113,2.2927,218.0,217.97,2.293]
[1736201262612,2.293,217.97,217.94,2.62]
[1736201262811,2.293,217.97,217.94,2.2933]
[1736201263418,2.2934,217.94,217.91,2.6]
[1736201264615,2.2934,217.94,217.91,4.8936]
[1736201265915,2.2933,217.95,217.91,4.8936]
[1736201268320,2.2937,217.92,217.88,2.6]
[1736201268920,2.2937,217.92,217.88,4.8939]
[1736201270720,2.2937,217.92,217.89,2.2939]
[1736201274421,1.4396,217.99,217.89,2.2939]
[1736201274629,2.2935,217.93,217.89,2.2939]
[1736201276826,1.4396,217.99,217.84,52.46]
[1736201277026,13.77,217.97,217.85,2.6]
[1736201277225,13.77,217.97,217.78,2.50715611]
[1736201277226,22.54911117,217.97,217.78,2.50715611]
[1736201277439,13.77,217.95,217.74,6.36393435]
[1736201277630,13.77,217.93,217.74,6.36393435]
[1736201277828,22.54911117,217.93,217.74,6.36393435]
[1736201278024,22.54911117,217.93,217.78,2.295]
[1736201278227,8.77911117,217.93,217.78,2.6]
[1736201278426,2.2943,217.85,217.79,2.2949]
[1736201278630,13.77,217.92,217.79,2.2949]
[1736201278831,13.77,217.92,217.78,2.6]
[1736201279130,2.2945,217.83,217.78,2.6]
[1736201280432,2.2945,217.83,217.79,2.2949]
[1736201281032,2.2944,217.85,217.79,2.2949]
[1736201281933,2.2944,217.84,217.79,2.2949]
[1736201282333,2.6,217.89,217.78,2.6]
[1736201282634,2.2946,217.83,217.65,30.09807618]
[1736201282825,25.13273674,217.89,217.69,2.6]
[1736201283026,2.2947,217.82,217.69,2.6]
[1736201284339,2.2947,217.82,217.7,2.6]
[1736201284633,2.2947,217.82,217.77,2.2951]
[1736201290040,2.295,217.79,217.74,2.2954]
[1736201290436,2.6,217.83,217.74,2.2954]
[1736201290734,2.2952,217.77,217.72,2.2956]
[1736201291242,2.6,217.83,217.7,2.62]
[1736201292032,2.2949,217.8,217.7,2.62]
[1736201293339,2.2949,217.8,217.75,2.2953]
[1736201293638,3.0154,217.9,217.7,2.62]
[1736201293639,2.2944,217.85,217.7,2.62]
[1736201293944,3.0154,217.9,217.7,2.62]
[1736201294335,2.2938,217.9,217.71,4.5916]
[1736201295043,2.2938,217.9,217.76,2.2952]
[1736201295248,3.7786,217.91,217.77,7.1412]
[1736201295547,3.7786,217.91,217.78,2.64]
[1736201296544,2.2938,217.9,217.78,2.64]
[1736201299443,2.2938,217.9,217.85,2.2942]
[1736201301344,2.2938,217.9,217.78,2.64]
[1736201301648,2.2938,217.9,217.86,2.2942]
[1736201301849,3.88728879,217.93,217.78,2.64]
[1736201302045,3.88728879,217.93,217.79,2.64]
[1736201302550,2.2936,217.92,217.79,2.64]
[1736201302748,3.88728879,217.93,217.79,2.64]
[1736201303050,3.88728879,217.93,217.91,2.2937]
[1736201304054,3.88728879,217.93,217.9,2.2938]
[1736201304345,2.2933,217.95,217.86,2.64]
[1736201304549,2.2933,217.95,217.9,2.2937]
[1736201305347,2.2931,217.97,217.92,2.2935]
[1736201305650,1.4112,217.99,217.92,2.2935]
[1736201306151,2.2933,217.95,217.92,2.2935]
[1736201311051,2.2933,217.95,217.91,2.2937]
[1736201312953,1.4112,217.99,217.91,2.2937]
[1736201313154,2.2934,217.94,217.91,2.2937]
[1736201313750,2.2934,217.94,217.86,2.64]
[1736201314051,2.2934,217.94,217.9,2.2937]
[1736201315751,2.2934,217.94,217.86,2.64]
[1736201316152,2.2933,217.95,217.91,2.2937]
[1736201317549,2.2932,217.96,217.86,2.64]
[1736201317749,2.2932,217.96,217.87,4.5048]
[1736201318554,2.2932,217.96,217.93,2.2934]
[1736201319250,2.9427,218.01,217.93,2.2934]
[1736201320057,2.2931,217.97,217.93,2.2934]
[1736201320557,2.9427,218.01,217.95,2.2932]
[1736201320954,2.2929,217.99,217.95,2.2932]
[1736201321352,2.2927,218.01,217.91,2.64]
[1736201321957,2.2927,218.01,217.97,2.293]
[1736201324254,7.22973116,218.05,217.97,2.293]
[1736201324458,1.4008,218.05,217.97,2.293]
[1736201325363,2.2927,218.0,217.97,2.293]
[1736201325966,52.5,218.14,217.87,4.5048]
[1736201325967,8.74943276,218.07,217.98,2.64]
[1736201326258,8.74943276,218.07,217.99,7.015]
[1736201326465,8.74943276,218.13,217.99,7.015]
[1736201326665,17.53198259,218.14,217.99,7.015]
[1736201327065,5.82524983,218.13,217.99,7.015]
[1736201327371,13.77,218.13,218.0,2.64]
[1736201327663,13.77,218.13,218.01,2.64]
[1736201327965,2.2923,218.05,218.02,2.64]
[1736201328266,2.2923,218.05,218.03,2.64]
[1736201328467,2.2923,218.05,217.93,2.8591]
[1736201328468,2.2923,218.05,218.04,2.64]
[1736201329065,2.2923,218.04,217.99,2.2927]
[1736201329259,2.2923,218.04,218.0,2.64]
[1736201334163,14.57468259,218.11,218.01,2.2925]
[1736201334367,8.74943276,218.11,218.01,2.2925]
[1736201334568,8.74943276,218.13,218.0,2.64]
[1736201334768,2.2921,218.07,218.02,2.2925]
[1736201334972,8.74943276,218.13,218.02,2.2925]
[1736201335170,14.57468259,218.13,218.02,2.2925]
[1736201335562,14.57468259,218.13,218.03,2.2923]
[1736201335767,8.74943276,218.13,218.03,2.2923]
[1736201336070,5.82524983,218.13,218.12,2.2914]
[1736201336265,8.74943276,218.14,218.12,2.64]
[1736201336461,8.74943276,218.16,218.12,0.67875894]
[1736201336672,8.74943276,218.15,218.12,0.09779979]
[1736201336872,8.74943276,218.15,218.12,2.38919979]
[1736201337073,11.04053276,218.16,217.94,1.4553]
[1736201337273,8.74943276,218.16,217.95,5.42869256]
[1736201337467,8.74943276,218.16,218.08,2.2919]
[1736201337772,8.74943276,218.15,218.09,2.64]
[1736201338167,8.74943276,218.17,218.09,2.64]
[1736201338364,2.2914,218.13,218.09,2.64]
[1736201338565,8.74943276,218.16,218.09,2.64]
[1736201338964,2.2916,218.12,218.09,2.64]
[1736201339570,8.74943276,218.16,217.95,57.0464]
[1736201339770,8.74943276,218.16,218.05,2.2921]
[1736201339966,11.68553276,218.15,218.06,2.64]
[1736201340166,2.2917,218.11,218.06,2.64]
[1736201340376,2.2917,218.11,218.06,4.9321]
[1736201341277,2.2917,218.11,218.07,2.292]
[1736201341679,2.2917,218.11,217.95,57.0464]
[1736201341877,2.2917,218.1,218.06,2.2921]
[1736201342280,2.2917,218.1,218.07,2.64]
[1736201343480,2.2919,218.09,218.04,2.2922]
[1736201343678,2.2919,218.09,218.05,2.64]
[1736201344081,2.2919,218.09,218.05,4.9322]
[1736201344682,2.2919,218.09,218.05,2.2922]
[1736201344882,2.2919,218.09,218.06,2.64]
[1736201345484,8.74943276,218.13,217.97,1.4801]
[1736201345687,2.292,218.08,217.98,2.64]
[1736201346179,14.57468259,218.13,218.03,2.2924]
[1736201346481,2.292,218.07,218.04,2.64]
[1736201350081,2.2919,218.08,218.04,2.64]
[1736201350387,8.74943276,218.12,218.04,2.64]
[1736201350583,8.74943276,218.14,218.04,2.64]
[1736201350790,8.74943276,218.14,218.07,2.2919]
[1736201350989,8.74943276,218.13,218.08,2.62]
[1736201351178,19.59524983,218.19,218.08,2.62]
[1736201351179,14.57468259,218.18,218.08,2.62]
[1736201351685,8.74943276,218.17,218.08,2.62]
[1736201351887,2.2915,218.12,218.08,2.62]
[1736201353189,2.2915,218.12,218.08,4.9119]
[1736201354289,2.2915,218.12,218.08,4.9319]
[1736201358894,8.74943276,218.14,218.13,2.2914]
[1736201359191,8.74943276,218.17,218.08,1.11891345]
[1736201359492,8.74943276,218.16,218.09,2.64]
[1736201359697,8.74943276,218.16,218.1,2.64]
[1736201359892,8.74943276,218.15,218.11,2.64]
[1736201360394,8.74943276,218.2,218.11,2.64]
[1736201360593,8.74943276,218.21,218.14,2.2912]
[1736201360789,8.74943276,218.21,218.12,4.3879]
[1736201360790,8.74943276,218.2,218.12,4.3879]
[1736201361094,8.74943276,218.19,218.17,2.2909]
[1736201361288,8.74943276,218.19,218.17,2.64]
[1736201361588,2.2904,218.22,218.17,2.64]
[1736201363089,2.2906,218.21,218.17,2.64]
[1736201363887,16.41,218.29,218.05,2.6891225]
[1736201364088,13.77,218.27,218.06,7.1517]
[1736201364490,2.291,218.17,218.1,2.2916]
[1736201364693,2.291,218.17,218.11,2.64]
[1736201365891,16.41,218.24,218.12,2.64]
[1736201366191,16.41,218.24,218.09,2.64]
[1736201366392,2.2915,218.12,218.09,2.64]
[1736201366792,16.41,218.24,218.09,2.64]
[1736201367190,16.41,218.24,218.06,4.5117]
[1736201367395,0.72811984,218.23,218.07,2.64]
[1736201367699,14.49816323,218.22,218.07,2.64]
[1736201367998,2.2918,218.1,218.07,2.64]
[1736201368794,2.2919,218.08,218.07,2.64]
[1736201369302,2.2919,218.08,218.05,2.64]
[1736201369599,4.4562,218.17,218.05,2.64]
[1736201369799,2.292,218.07,218.05,2.64]
[1736201370901,4.4562,218.17,218.04,2.64]
[1736201370902,18.2262,218.17,218.04,2.64]
[1736201371297,2.2922,218.05,218.04,2.64]
[1736201371599,18.2262,218.17,218.02,2.64]
[1736201371900,4.4562,218.17,218.03,2.64]
[1736201372101,2.2919,218.09,218.04,6.7117]
[1736201373895,16.4,218.14,217.9,6.36393435]
[1736201374094,16.4,218.14,217.92,7.0235]
[1736201375000,16.4,218.14,217.98,2.2929]
[1736201375192,16.4,218.14,217.99,2.64]
[1736201375398,16.4,218.14,218.0,2.64]
[1736201376498,2.2924,218.03,218.0,2.64]
[1736201378097,16.4,218.14,218.0,2.64]
[1736201378303,2.2921,218.07,218.0,2.64]
[1736201379204,2.2921,218.07,218.02,2.2925]
[1736201379403,2.2921,218.06,218.02,2.2925]
[1736201381097,2.292,218.07,218.02,2.2925]
[1736201382600,16.4,218.14,218.0,2.64]
[1736201382802,16.4,218.14,217.92,4.3835]
[1736201383001,13.76,218.11,217.93,2.62]
[1736201383196,2.2928,218.0,217.95,2.2932]
[1736201383402,2.2928,218.0,217.94,2.62]
[1736201384506,2.2928,218.0,217.96,2.2931]
[1736201385499,2.62,218.07,217.97,2.293]
[1736201386308,2.2925,218.02,217.98,2.2929]
[1736201387308,2.2925,218.02,217.99,2.2928]
[1736201387503,2.2923,218.05,217.94,2.62]